Cogmind - Beta 13 @@@ ROGUE MODE // 2024.03.29 @ 22:56:29 Player: gabr Result: Destroyed by G-47 Trooper with Particle Gun Performance ------------- Evolutions (2) 1000 Regions Visited (4) 800 Robots Destroyed (86) 430 Value Destroyed (2309) 2309 Prototype IDs (7) 140 Alien Tech Used (0) 0 Bonus (289) 289 TOTAL SCORE: 4968 Bonus ------- High Alert Combat Kills 289 Cogmind --------- Core Integrity 0/550 Matter 204/300 Energy 288/300 System Corruption 11% Temperature Cool (73) Movement Treading (225) Ox1 Location -8/Materials Parts ------- > --- POWER (1) -------- (None) > --- PROPULSION (4) --- Advanced Treads > --- UTILITY (4) ------ Large Storage Unit Compact Battery > --- WEAPON (2) ------- Improved Assault Rifle > --- INVENTORY (15) --- Aluminum Leg Long-range Tractor Beam Mining Laser Welding Torch Peak State ------------ > --- POWER ------------ Light Nuclear Core > --- PROPULSION ------- Aluminum Leg Improved Aluminum Leg Carbon-fiber Leg Carbon-fiber Leg > --- UTILITY ---------- Power Amplifier Large Storage Unit Hardened Light Armor Plating Long-range Tractor Beam > --- WEAPON ----------- High-powered Shotgun High-powered Shotgun > --- INVENTORY -------- Advanced Treads Aluminum Leg Compact Battery Long-range Tractor Beam Improved Assault Rifle Grenade Launcher Mining Laser Welding Torch [Rating: 30] Favorites ----------- Power Ion Engine Engine Ion Engine Power Core Light Nuclear Core Propulsion Aluminum Leg Treads Light Treads Leg Aluminum Leg Utility Hacking Suite Device Power Amplifier Storage Large Storage Unit Hackware Hacking Suite Protection Improved Light Armor Plating Weapon High-powered Shotgun Energy Gun Improved Medium Laser Energy Cannon Beam Cannon Ballistic Gun High-powered Shotgun Ballistic Cannon Light Cannon Launcher Grenade Launcher Build | -11 -10 -10 -9 -8 ------- Run | Yrd Mat Min Mat Mat Slots Evolved 4 | . . . 2 2 Power . | . . . . . Propulsion 2 | . . . 2 . Utility 2 | . . . . 2 Weapon . | . . . . . Parts Attached 92 | 6 1 5 56 24 Power 16 | 1 . 2 10 3 Engine 12 | 1 . 1 9 1 Core 4 | . . 1 1 2 Reactor . | . . . . . Propulsion 40 | 2 . 2 29 7 Treads 11 | . . . 10 1 Leg 29 | 2 . 2 19 6 Wheel . | . . . . . Hover . | . . . . . Flight . | . . . . . Utility 9 | 1 1 . 1 6 Device 2 | . . . . 2 Storage 3 | 1 . . 1 1 Processor . | . . . . . Hackware 1 | . 1 . . . Protection 3 | . . . . 3 Artifact . | . . . . . Weapon 27 | 2 . 1 16 8 Energy Gun 6 | . . . 6 . Energy Cannon 3 | . . . 3 . Ballistic Gun 14 | 2 . 1 4 7 Ballistic Cannon 3 | . . . 3 . Launcher 1 | . . . . 1 Special Weapon . | . . . . . Impact Weapon . | . . . . . Slashing Weapon . | . . . . . Piercing Weapon . | . . . . . Special Melee Weapon . | . . . . . Unidentified Prototypes 5 | . . . 4 1 Corrupted Parts 1 | . . . 1 . System Corruption 1 | . . . 1 . Parts Lost 33 | . . . 14 19 Power 7 | . . . 4 3 Propulsion 14 | . . . 8 6 Utility 6 | . . . . 6 Weapon 6 | . . . 2 4 Highest Loss Streak 18 | . . . 4 18 To Critical Strikes 1 | . . . . 1 Average Slot Usage (%) 93 | . 97 100 93 86 Engine 8 | . 14 8 9 4 Core 1 | . . 5 1 2 Treads 11 | . . . 15 . Leg 25 | . 28 28 24 31 Storage 11 | . 14 14 11 9 Hackware 10 | . 12 14 11 6 Protection 1 | . . . . 12 Energy Gun 4 | . . . 5 1 Energy Cannon 2 | . . . 3 . Ballistic Gun 12 | . 28 28 9 15 Ballistic Cannon 2 | . . . 3 . Naked Turns . | . . . . . Heaviest Build 37 | 10 10 12 37 37 Greatest Support 83 | 20 20 20 83 53 Greatest Overweight (x) 3 | . . . 3 1 Average Overweight (x) . | . . . . . Largest Inventory Capacity 15 | 8 8 8 15 15 Average Capacity 13 | 6 8 8 14 15 Most Carried 15 | 7 8 8 15 15 Average Carried 12 | 4 7 7 14 13 Final Capacity 15 | 8 8 8 15 15 Final Carried 15 | 7 7 8 15 4 Class Distribution -------------------- 82% | Scavenger-Mutant 17% | Mutant Dominant Class ---------------- Mutant | -10/Materials Scavenger-Mutant | -10/Mines Scavenger-Mutant | -9/Materials Scavenger-Mutant | -8/Materials Resources | -11 -10 -10 -9 -8 ----------- Run | Yrd Mat Min Mat Mat Matter Collected 2050 | 218 13 171 1222 426 Remotely 67 | . . . . 67 Salvage Created 2947 | 22 13 261 2094 557 Parts 187 | 3 3 21 118 42 Haulers Intercepted 4 | . . . 3 1 Recyclers Shooed 1 | . . . 1 . Parts Field Recycled . | . . . . . Retrieved Matter . | . . . . . Parts Self-Destructed . | . . . . . Prevented . | . . . . . Kills | -11 -10 -10 -9 -8 ------- Run | Yrd Mat Min Mat Mat Combat Hostiles Destroyed 65 | . . 10 46 9 Guns 51 | . . 10 32 9 Cannons 13 | . . . 13 . Classes Destroyed 16 | 1 1 2 8 4 Worker 4 | . . . . 4 Builder 2 | . . . . 2 Tunneler 1 | 1 . . . . Hauler 4 | . . . 3 1 Recycler 4 | . . . 3 1 Mechanic 1 | . . . 1 . Operator 2 | . 1 . 1 . Watcher 4 | . . . 3 1 Swarmer 15 | . . 6 9 . Cutter 2 | . . . . 2 Grunt 31 | . . 4 25 2 Brawler 1 | . . . 1 . Duelist 2 | . . . 2 . Protector 1 | . . . 1 . Sentry 10 | . . . 8 2 Hunter 3 | . . . . 3 Best Kill Streak 8 | 1 2 3 5 8 Combat Bots Only 6 | . . 3 4 6 Max Kills in Single Turn 4 | 1 1 1 2 4 Gunslinging 1 | . . . 1 1 Exploded . | . . . . . Melee . | . . . . . Uniques/NPCs Destroyed . | . . . . . Combat | -11 -10 -10 -9 -8 -------- Run | Yrd Mat Min Mat Mat Hostile Shots Fired 523 | . 3 61 279 180 Missed 119 | . 2 15 68 34 Damage Taken 5989 | . 13 487 2737 2752 Core 897 | . . 44 303 550 Absorbed by Shields . | . . . . . Redirected to Shielding 51 | . . . . 51 Regen/Repaired (Parts) 20 | . . . 20 . Core Remaining (%) 68 | 100 . 82 24 . Volleys Fired 241 | 4 1 36 152 48 Largest 2 | 2 2 2 2 2 Hottest 126 | 40 40 40 126 70 Shots Fired 435 | 8 2 72 263 90 Gun 359 | 8 2 72 191 86 Cannon 72 | . . . 72 . Launcher 4 | . . . . 4 Special . | . . . . . Kinetic 318 | 8 2 72 155 81 Thermal 92 | . . . 92 . Explosive 4 | . . . . 4 Electromagnetic 21 | . . . 16 5 Robot Hit Streak 14 | 5 6 14 12 9 Robot Miss Streak 6 | 1 . 6 5 4 Penetration Max 1 | . . . . 1 Secondary Targets 7 | . . . 5 2 Max Gunslinging Chain 1 | . . . 1 1 Shots Hit Robots 287 | 7 1 48 174 57 Core Hits 168 | 3 1 22 90 52 Critical Kills 3 | . 1 . 2 . Critical Parts Destroyed 1 | . . . . 1 Critical Strikes 10 | . 1 . 8 1 Burn 4 | . . . 4 . Destroy 4 | . 1 . 2 1 Blast 2 | . . . 2 . Melee Attacks . | . . . . . Impact . | . . . . . Slashing . | . . . . . Piercing . | . . . . . Sneak Attacks . | . . . . . Combat Hostiles . | . . . . . Follow-up Attacks . | . . . . . Damage Inflicted 5282 | 67 7 382 3049 1777 Guns 3559 | 67 7 382 2067 1036 Cannons 933 | . . . 933 . Explosions 775 | . . . 38 737 Melee . | . . . . . Ramming 15 | . . . 11 4 Kinetic 3304 | 67 7 382 1893 955 Thermal 968 | . . . 968 . Explosive 737 | . . . . 737 Electromagnetic 258 | . . . 177 81 Impact . | . . . . . Slashing . | . . . . . Piercing . | . . . . . Highest Corruption 11 | . . . 1 11 Average Corruption 1 | . . . 1 11 Corruption Purged . | . . . . . Corruption Blocked . | . . . . . Effects 13 | . . . 12 1 Message Errors 2 | . . . 2 . Matter Fused 5 | . . . 5 . Heat Flow Errors 2 | . . . 1 1 Energy Discharges 2 | . . . 2 . Data Loss (major) 2 | . . . 2 . Overload Shots . | . . . . . Overflow Damage 76 | . . . 8 68 Projectiles . | . . . . . Explosions 76 | . . . 8 68 Melee . | . . . . . Knockbacks 16 | . . . 16 . Impact . | . . . . . Kinetic 13 | . . . 13 . Secondary 3 | . . . 3 . Self-Inflicted Damage 174 | . . . . 174 Shots 6 | . . . . 6 Rammed 1 | . . . 1 . Targets Rammed 2 | . . . 1 1 Kicked 1 | . . . . 1 Crushed . | . . . . . Highest Temperature 377 | . . 37 377 163 Average Temperature 58 | . . 12 72 28 Received Heat Transfer 1719 | . 9 177 930 603 Effects 1 | . . . 1 . Shutdowns 1 | . . . 1 . Siege Activations . | . . . . . Robots Corrupted 1 | . . . 1 . Combat Hostiles 1 | . . . 1 . Parts Fried . | . . . . . Impact Corruptions . | . . . . . Robots Melted . | . . . . . Combat Hostiles . | . . . . . Parts Melted 3 | . . . 3 . Heat Transferred 2364 | . . . 2364 . Parts Sabotaged . | . . . . . Parts Stolen . | . . . . . Parts Stripped . | . . . . . Power Chain Reactions 2 | . . . 1 1 Alert | -11 -10 -10 -9 -8 ------- Run | Yrd Mat Min Mat Mat Peak Influence 692 | 5 8 235 692 525 Initial 291 | . 3 . 24 291 Average 389 | . 2 129 457 360 Maximum Alert Level 2 | . . 1 2 2 Low Security (%) 26 | 100 100 94 16 . Level 1 20 | . . 5 15 68 Level 2 52 | . . . 68 31 Level 3 . | . . . . . Level 4 . | . . . . . Level 5 . | . . . . . High Security . | . . . . . Max Security . | . . . . . Squads Dispatched 13 | . . . 9 4 Investigation 1 | . . . 1 . Extermination . | . . . . . Reinforcement 8 | . . . 4 4 Assault 4 | . . . 4 . Garrison . | . . . . . Intercept . | . . . . . Searches Triggered . | . . . . . Construction Impeded 1 | . . . . 1 Haulers Reinforced . | . . . . . Active Scanning Responses . | . . . . . Cargo Convoy Interrupts . | . . . . . Stealth | -11 -10 -10 -9 -8 --------- Run | Yrd Mat Min Mat Mat Distress Signals 7 | . . . 4 3 Communications Jammed . | . . . . . Distress Signals . | . . . . . Times Spotted 109 | . 2 10 74 23 Peak Tracking Total 10 | . 2 3 6 10 Tactical Retreats 3 | . . . 2 1 Traps | -11 -10 -10 -9 -8 ------- Run | Yrd Mat Min Mat Mat Traps Triggered 2 | . . . 2 . Indirectly . | . . . . . Trap Hack Attempts . | . . . . . Triggered . | . . . . . Disarmed . | . . . . . Reprogrammed 1 | . . . 1 . Reused . | . . . . . Traps Extracted . | . . . . . Installed . | . . . . . Triggered . | . . . . . Machines | -11 -10 -10 -9 -8 ---------- Run | Yrd Mat Min Mat Mat Machines Disabled 6 | . . . 3 3 Max in Single Turn 2 | . . . 1 2 Machines Repaired . | . . . . . Machines Dismantled . | . . . . . Machines Sabotaged . | . . . . . Overloaded Fab Kills . | . . . . . Hacking | -11 -10 -10 -9 -8 --------- Run | Yrd Mat Min Mat Mat Machines Accessed 10 | . 2 2 6 . Terminals 6 | . 2 2 2 . Fabricators . | . . . . . Repair Stations 1 | . . . 1 . Recycling Units 2 | . . . 2 . Scanalyzers 1 | . . . 1 . Garrison Access . | . . . . . Total Hacks 26 | . 3 7 16 . Successful 14 | . 2 2 10 . Failed 12 | . 1 5 6 . Catastrophic 2 | . . 1 1 . Database Lockouts . | . . . . . Manual . | . . . . . Terminals 17 | . 3 7 7 . Fabricators . | . . . . . Repair Stations 3 | . . . 3 . Recycling Units 4 | . . . 4 . Scanalyzers 2 | . . . 2 . Garrison Access . | . . . . . Terminal Hacks 7 | . 2 2 3 . Prototype ID Bank 1 | . . . 1 . Level Access Points 1 | . . 1 . . Alert Level 1 | . . . 1 . Unreport Threat 1 | . 1 . . . Reprogram Traps 1 | . . . 1 . Dispatch Records 1 | . . 1 . . Registered Components 1 | . 1 . . . Fabricator Hacks . | . . . . . Repair Station Hacks 3 | . . . 3 . Scan Component 2 | . . . 2 . Repair 1 | . . . 1 . Recycling Unit Hacks 2 | . . . 2 . Retrieve Components 2 | . . . 2 . Scanalyzer 2 | . . . 2 . Insert Component 1 | . . . 1 . Analyze 1 | . . . 1 . Garrison Access Hacks . | . . . . . Unauthorized Hacks . | . . . . . Terminals . | . . . . . Fabricators . | . . . . . Repair Stations . | . . . . . Recycling Units . | . . . . . Scanalyzers . | . . . . . Garrison Access . | . . . . . Data Cores Recovered 1 | . 1 . . . Used 1 | . 1 . . . Hacking Detections 7 | . 1 2 4 . Full Trace Events 2 | . . . 2 . Feedback Events . | . . . . . Feedback Blocked . | . . . . . Robot Schematics Acquired . | . . . . . Robots Built . | . . . . . Authchips . | . . . . . Time . | . . . . . Total Robot Build Rating . | . . . . . Part Schematics Acquired 1 | . . . 1 . Parts Built . | . . . . . Authchips . | . . . . . Time . | . . . . . Total Part Build Rating . | . . . . . Parts Repaired 1 | . . . 1 . Time 26 | . . . 26 . Parts Recycled . | . . . . . Recycled Matter . | . . . . . Retrieved Matter . | . . . . . Retrieved Components 18 | . . . 18 . Parts Scanalyzed 1 | . . . 1 . Part Schematics Acquired 1 | . . . 1 . Parts Damaged . | . . . . . Bothacking | -11 -10 -10 -9 -8 ------------ Run | Yrd Mat Min Mat Mat Used RIF Installer . | . . . . . Robots Hacked . | . . . . . Non-combat . | . . . . . Combat . | . . . . . Robot Hacks Applied . | . . . . . Relay Couplers Released . | . . . . . Fabnet Peak Effective % . | . . . . . Robots Rewired . | . . . . . Allies Hacked . | . . . . . Hacks Repelled . | . . . . . Allies | -11 -10 -10 -9 -8 -------- Run | Yrd Mat Min Mat Mat Total Allies . | . . . . . Largest Group . | . . . . . Highest-Rated Group . | . . . . . Highest-Rated Ally . | . . . . . Total Orders . | . . . . . Ally Attacks . | . . . . . Total Damage . | . . . . . Kills . | . . . . . Allies Corrupted . | . . . . . Allies Melted . | . . . . . Intel | -11 -10 -10 -9 -8 ------- Run | Yrd Mat Min Mat Mat Robot Analysis Total . | . . . . . Derelict Logs Recovered 1 | . . 1 . . Drone Launches . | . . . . . Drone Recoveries . | . . . . . Exploration | -11 -10 -10 -9 -8 ------------- Run | Yrd Mat Min Mat Mat Turns Passed 3792 | 93 70 419 2723 487 Spaces Moved 1959 | 54 53 239 1367 246 Core 3 | 3 . . . . Treads 432 | . . . 427 5 Legs 1524 | 51 53 239 940 241 Wheels . | . . . . . Hover . | . . . . . Flight . | . . . . . Fastest Speed 50 | 50 120 120 120 120 Average Speed 143 | 116 120 120 153 123 Slowest Speed 330 | 120 120 120 330 225 Overloaded Moves . | . . . . . Propulsion Burnouts . | . . . . . Robots Hopped . | . . . . . Cave-ins Triggered 1 | . . . . 1 Exploration Rate (%) 30 | 5 11 49 69 20 Regions Visited 4 Branch Regions 1 Pre-discovered Areas . | . . . . . Known Exits Taken 1 | . . 1 . . Unknown Exits Taken 3 | 1 1 . 1 . Scrap Searched 1 | . . 1 . . Spaces Dug . | . . . . . Terrain Destroyed 103 | . . . 55 48 Melee . | . . . . . Projectile 1 | . . . . 1 AOE 102 | . . . 55 47 Terrain Rammed . | . . . . . Walls Destroyed . | . . . . . Machines Disabled . | . . . . . Actions | -11 -10 -10 -9 -8 --------- Run | Yrd Mat Min Mat Mat Total 2555 | 75 58 322 1751 349 Wait 150 | 5 . 27 100 18 Move 1955 | 53 52 238 1366 246 Hop . | . . . . . Pick Up 40 | 7 2 6 23 2 Fast Attach 40 | 6 1 . 28 5 Attach 21 | . . . 9 12 Detach 11 | . . . 10 1 Swap 31 | . . 5 19 7 Drop 64 | . 2 10 43 9 Fire 241 | 4 1 36 152 48 Melee . | . . . . . Ram . | . . . . . Kick 1 | . . . . 1 Crush 1 | . . . 1 . Escape Stasis . | . . . . . Rewire . | . . . . . Trap . | . . . . . Miscellaneous . | . . . . . Route ------- -11/Scrapyard -10/Materials -10/Mines (discovered 2 exits: *Mat x2) -9/Materials (discovered 3 exits: [*Mat] / [*Min x2]) -8/Materials History --------- Turn | Location | Event 6 | -11/Scrapyard | Discovered new exit (range 16) 94 | -11/Scrapyard | Entered Materials 131 | -10/Materials | Discovered new exit (range 16) 164 | -10/Materials | Entered Mines 310 | -10/Mines | Build established: Mutant 515 | -10/Mines | Learned Materials emergency access door positions 540 | -10/Mines | Discovered new exit (range 5) 581 | -10/Mines | Identified exit to Materials 583 | -10/Mines | Entered Materials 583 | -9/Materials | Evolved 2 slots: Propulsion x2 639 | -9/Materials | Build established: Scavenger-Mutant 662 | -9/Materials | Repaired Aluminum Leg 936 | -9/Materials | Discovered new exit (range 13) 1660 | -9/Materials | Core integrity fell below 50% 1783 | -9/Materials | First assault squad dispatched 2159 | -9/Materials | Discovered new exit (range 9) 2177 | -9/Materials | Discovered new exit (range 3) 2316 | -9/Materials | Lost 4 parts (1p3n) 3306 | -9/Materials | Entered another Materials area 3306 | -8/Materials | Evolved 2 slots: Utility x2 3770 | -8/Materials | Core integrity fell below 50% 3776 | -8/Materials | Crushed by falling debris 3776 | -8/Materials | System corruption reached 10% 3788 | -8/Materials | Core integrity fell below 20% 3793 | -8/Materials | Destroyed by G-47 Trooper with Particle Gun Last Messages --------------- 03776_ U-05 Engineer lays Concrete. 03776_ K-01 Serf collects debris. 03777_ Hpw. Shotgun destroyed. 03777_ U-05 Engineer lays Concrete. 03779_ Critical hit (Burn: +37). 03779_ U-05 Engineer lays Concrete. 03781_ K-01 Serf collects debris. 03781_ U-05 Engineer builds a Wall. 03785_ The unstable cave ceiling collapses. 03785_ K-01 Serf collects debris. 03785_ U-05 Engineer builds a Wall. 03787_ System corrupted: Heat flow error (+175). 03787_ The unstable cave ceiling collapses. 03787_ U-05 Engineer builds a Wall. 03788_ K-01 Serf collects debris. 03788_ Critical hit (Burn: +37). 03788_ U-05 Engineer builds a Wall. 03789_ U-05 Engineer lays Concrete. 03792_ K-01 Serf collects debris. 03792_ U-05 Engineer lays Concrete. Map ----- +----------------------------------------------------+ | ?????????????????????????????????????????????????? | | ?????????????????????????????????????????????????? | | ?????????????????????????????????????????????????? | | ?????????????????????????????????????????????????? | | ?????????????????????????????????????????????????? | | ?????????????????????????????????????????????????? | | ????????????#????????????????????????????????????? | | ????????????# ???????????????????????????????????? | | ????????????# ??????????????????????????????????? | | ????????????# #####+############ ????????????? | | ???????###### !%!% ???????????? | | ???????# %=* ???????????? | | ???????# #### % ???????????? | | ???????#????##### ######+###???????????????? | | ?????###+##### = =[=%[ ##??????????????????????? | | ????? %[=*![ #??????????????????????? | | ????? ==!%= #??????????????????????? | | ???? #% !* #??????????????????????? | | ???? # = #??????????????????????? | | ??? #H #??????????????????????? | | ??? #u % #??????????????????????? | | ??? %# ! Y #???????????????????????? | | ??????????#### ##??#######???????????????? | | ?????????## ! ##### #???????????????? | | ????? g #???????????????? | | ???? ^ T @ #???????????????? | | ???? ^ w % %u #???????????????? | | ????########"### ####### #???????????????? | | ?????????? ???#######?????## ##???????????????? | | ????????#! ?????????????????# #????????????????? | | ????????#???????????????????# #????????????????? | | ????????????????????????????# ###########??????? | | ?????????????????????###????# ## #??????? | | ???????????????????### ###### ## """"" #??????? | | ???????????????????# # ## """"" #??????? | | ???????????????????#"" # ## """"" #??????? | | ???????????????????#"" # ## #??????? | | ???????????????????#" [# ## """"" =#??????? | | ???????????????????#"" += ## """"" #??????? | | ???????????????????#"" [[ ## """""! #??????? | | ???????????????????# [[ ! " ## #???#### | | ???????????????????# " #####+######### | | ???????????????????#= # "%" * # | | ???????????????????########## " !% # | | ????????????????????????????# = #[ | | ????????????????????????????###############[ +! | | ??????????????????????????????????????????#[ #= | | ??????????????????????????????????????????# #/ | | ??????????????????????????????????????????# # | | ???????????????????????????????????######## #### | +----------------------------------------------------+ Best States ------------- Heat Dissipation 31 Energy Generation 15 Energy Capacity 300 Matter Stores 300 Matter Capacity 300 Sight Range 16 Terrain Scan Density 10 Power Amplification 20 Armor Coverage 150 Propulsion Shielding 33 Evasion (%) 55 Recoil Reduction 4 Offensive Hacking 10 Item Schematics ----------------- Lrn. Tractor Beam | -9/Materials | Scanalyzed Robot Schematics ------------------ None Fabricated ------------ Nothing Alien Tech Used ----------------- None Achievements -------------- None Challenges ------------ None Game ------ Seed ThermalCannonSword Manual? 0 Play Time 00:30:18 Cumulative 23.6 hours Start 2024.03.29 @ 22:22:58 End 2024.03.29 @ 22:56:29 Sessions 1 Manual Loads 0 Difficulty Rogue Special Mode None Game No. 52 Rogue 52 Adventurer 0 Explorer 0 Win Type - Total 0 Types 0/0/0/0/0/0/0/0/0 Lore% 18 Gallery% 24 Achievement% 22 Wizard Run 0 Options --------- Layout 0 ASCII 0 Keyboard 1 Movement Numpad Keybinds 0 Fullscreen 1 Font 18/X11 Map View 76x50 Zoom Use 0% Tactical HUD 1 Map Filters NONE Filters NONE Steam 1 RUN: f762fc67-f11c-4392-b8b4-c174c439c3b6